Workbook

Sheet Calculateur
B1: Surveillance de la durabilité
B2: Exemple de calcul de la taille pour l’évaluation de la durabilité physique
J4: Remarques :
B5: Nombre de grappes par site | C5: 15 | F5: Taux de pertes après 4 ans, toutes causes confondues, tel qu’il est anticipé | G5: 0.35 | J5: Les cases vertes sont à mettre à jour en fonction du contexte national.
B6: Nombre de ménages par grappe | C6: 10 | F6: Taux de pertes dues à l’usure normale après 3 ans, tel qu’il est anticipé | G6: 0.2 | J6: Les paramètres encadrés en vert sont généralement exacts et ne nécessitent pas d’ajustement.
F7: Par déduction, proportion cédée à d’autres utilisateurs | H7: =G5-G6 -> 0.15 | J7: Les paramètres et résultats encadrés en rouge ne peuvent pas être modifiés.
C8: Début de l’étude | D8: 3e année
B9: Nombre total de ménages par site | C9: =C5*C6 -> 150 | D9: =(C5*C6)-((C5*C6)*G15) -> 142.5 | F9: Nombre moyen de moustiquaires données lors de la campagne pour chaque ménage | G9: 2.5
B10: Nombre de moustiquaires par ménage | C10: =$G$9-($G$9*$G$10) -> 2.3 | D10: =$G$9-($G$9*$G$10) -> 2.3 | F10: Proportion de moustiquaires issues de la campagne et perdues au début de l’étude | G10: 0.08
B11: Nombre de moustiquaires de la cohorte par ménage | C11: =C9*C10 -> 345 | D11: =(D9*D10)-((D9*D10)*(G5-G6)) -> 278.5875
F12: Intervalle de confiance (sélectionner dans la liste déroulante) | G12: 0.95 | H12: =VLOOKUP(G12,'CI list'!B3:C5, 2, FALSE) -> 1.96
F13: % anticipé de moustiquaires réparables après 3 ans | G13: 0.5
F14: Effet sur la conception de l’étude | G14: 2.5
F15: Taux de non-réponses | G15: 0.05
K16: Taux de survie de référence pour chaque durée de vie médiane des moustiquaires et IC
F17: Taille de l’échantillon (moustiquaires de la cohorte évaluées la 3e année) | H17: =D11 -> 278.5875 | K17: 1,5 an | L17: 0.04 | M17: =IF($L17-(SQRT((($H$12*$H$12)*($L17*(1-$L17))*$G$14)/$H$17))>=0, $L17-(SQRT((($H$12*$H$12)*($L17*(1-$L17))*$G$14)/$H$17)), 0) -> 0.003615963822 | N17: =$L17+(SQRT((($H$12*$H$12)*($L17*(1-$L17))*$G$14)/$H$17)) -> 0.07638403618
F18: Marge d’erreur estimée (+-, en %) | H18: =SQRT((($H$12*$H$12)*($G$13*(1-$G$13))*$G$14)/$H$17) -> 0.09283575356 | K18: 2 ans | L18: 0.19 | M18: =$L18-(SQRT((($H$12*$H$12)*($L18*(1-$L18))*$G$14)/$H$17)) -> 0.1171608997 | N18: =$L18+(SQRT((($H$12*$H$12)*($L18*(1-$L18))*$G$14)/$H$17)) -> 0.2628391003
F19: Intervalle de confiance estimé pour la survie fonctionnelle des MILD | H19: =G13-H18 -> 0.4071642464 | I19: =G13+H18 -> 0.5928357536 | K19: 2,5 ans | L19: 0.36 | M19: 0.2708776766 | N19: 0.4491223234
K20: 3 ans | L20: 0.5 | M20: 0.4071642464 | N20: 0.5928357536
F21: Calcul de la taille d’échantillon nécessaire en cas de marge d’erreur de +/- 10 % | H21: =(($H$12*$H$12)*($G$13*(1-$G$13)))/(0.1*0.1)*$G$14*(1+$G$15) -> 252.105 | K21: 3,5 ans | L21: 0.6 | M21: 0.5090399096 | N21: 0.6909600904
F22: Calcul de la taille d’échantillon nécessaire en cas de marge d’erreur de +/- 5 % | H22: =(($H$12*$H$12)*($G$13*(1-$G$13)))/(0.05*0.05)*$G$14*(1+$G$15) -> 1008.42 | K22: 4 ans | L22: 0.68 | M22: 0.5933886699 | N22: 0.7666113301
K23: 4,5 ans | L23: 0.74 | M23: 0.6585581188 | N23: 0.8214418812
K24: 5 ans | L24: 0.78 | M24: 0.7030862645 | N24: 0.8569137355

Sheet CI list (hidden)
B2: CI | C2: z
B3: 0.99 | C3: 2.57
B4: 0.95 | C4: 1.96
B5: 0.9 | C5: 1.65
